fUSD/lending_fUSD_20250314
["ID","MTS","AMOUNT","RATE_DAILY","PERIOD"]
[356147790,1741966234370,-37100.60195866,0.0001,2]
[356147791,1741966234383,-3374.1999674,0.0001,2]
[356147802,1741966237905,-1531.1592485,9.894e-05,2]
[356147803,1741966237973,-505.5527515,9.894e-05,2]
[356147804,1741966237983,-708.09612339,0.0001,2]
[356147805,1741966238016,-2122.675,0.0001,2]
[356147806,1741966238028,-4243.35,0.0001,2]
[356147820,1741966240184,-42569.7752859,0.0001,2]
[356147821,1741966240976,-1211.11375481,0.0001,2]
[356147822,1741966240987,-464.72500002,0.0001,2]
[356147862,1741966243095,-1013.0,9.894e-05,2]
[356147863,1741966243104,-45280.15383465,0.0001,2]
[356147875,1741966244722,-2907.24673728,0.0001,2]
[356147913,1741966246397,-345.24,9.69e-05,2]
[356147916,1741966246408,-117.14456456,0.0001,2]
[356147940,1741966246528,-266.40000002,0.0001,2]
[356147950,1741966470707,250.0,9e-05,2]
[356147951,1741966473119,165.59,9.294e-05,2]
[356147952,1741966473335,165.59,9.352e-05,2]
[356147953,1741966473762,165.59,9.41e-05,2]
[356147954,1741966473947,165.59,9.468e-05,2]
[356147955,1741966474154,165.59,9.526e-05,2]
[356147958,1741966517393,1000.0,9.027e-05,2]
[356147960,1741966637106,2709.04,9.12e-05,2]
[356147961,1741966710088,171.28,9.027e-05,2]
[356147962,1741966749175,2188.35,9.144e-05,2]
[356147963,1741966758186,1545.79,8.219e-05,2]
[356147964,1741966825949,212.53154604,9.027e-05,2]
[356147965,1741966825976,10000.0,9.027e-05,2]
[356147966,1741966826003,10000.0,9.027e-05,2]
[356147967,1741966826029,3687.46845396,9.027e-05,2]
[356147969,1741966962749,200.45185774,8.982e-05,2]
[356147970,1741966979743,150.0,9.562e-05,7]
[356147971,1741966984850,161.92,7.222e-05,2]
[356147982,1741967197982,159.46,9.298e-05,2]
[356147983,1741967219022,250.0,9.027e-05,2]
[356147984,1741967236449,-513.69,0.000201,120]
[356147985,1741967236502,-119.43550209,0.00022,120]
[356147986,1741967236769,-40.56449791,0.00022,120]
[356147987,1741967236802,-260.0,0.00023,120]
[356147988,1741967236830,-633.12550209,0.0002301,120]
[356147989,1741967236866,-230.00905845,0.000245,120]
[356147990,1741967236902,-487.0,0.00025,120]
[356147991,1741967236933,-509.024329,0.00025053,120]
[356147992,1741967236961,-856.36182055,0.00025053,120]
[356147993,1741967237142,-1143.63817945,0.00025053,120]
[356147994,1741967237173,-507.060879,0.00025053,120]
[356147995,1741967237202,-320.533962,0.00026053,120]
[356147996,1741967403963,315.86981,0.00026137,120]
[356147997,1741967407668,154.02174965,0.00026137,120]
[356148008,1741967432308,-165.59,9.584e-05,2]
[356148009,1741967432319,-150.0,9.591e-05,2]
[356148010,1741967432330,-68.61133856,9.6e-05,2]
[356148011,1741967432446,-931.38866144,9.6e-05,2]
[356148012,1741967432455,-165.59,9.642e-05,2]
[356148013,1741967432465,-165.59,9.7e-05,2]
[356148014,1741967432475,-150.0,9.726e-05,2]
[356148015,1741967432485,-150.0,9.729e-05,2]
[356148016,1741967432494,-150.0,9.73e-05,2]
[356148017,1741967432503,-441.21,9.73e-05,2]
[356148018,1741967432513,-773.79,9.73e-05,2]
[356148019,1741967432522,-442.02,9.73e-05,2]
[356148020,1741967432532,-345.24,9.73e-05,2]
[356148021,1741967432542,-300.0,9.73e-05,2]
[356148022,1741967432552,-779.11,9.73e-05,2]
[356148023,1741967432561,-266.07,9.73e-05,2]
[356148025,1741967432572,-345.24,9.73e-05,2]
[356148026,1741967432584,-651.26,9.73e-05,2]
[356148028,1741967432594,-442.02,9.73e-05,2]
[356148030,1741967432604,-150.0,9.73e-05,2]
[356148032,1741967432613,-779.11,9.73e-05,2]
[356148034,1741967432625,-345.24,9.73e-05,2]
[356148036,1741967432635,-779.11,9.73e-05,2]
[356148038,1741967432644,-150.0,9.73e-05,2]
[356148040,1741967432656,-442.02,9.73e-05,2]
[356148042,1741967432667,-779.11,9.73e-05,2]
[356148044,1741967432677,-442.02,9.73e-05,2]
[356148046,1741967432687,-390.8,9.73e-05,2]
[356148048,1741967432697,-150.0,9.73e-05,2]
[356148050,1741967432706,-612.87,9.73e-05,2]
[356148052,1741967432716,-696.34428856,9.73e-05,2]
[356148054,1741967432728,-82.76571144,9.73e-05,2]
[356148056,1741967432739,-324.23428856,9.73e-05,2]
[356148059,1741967432752,-117.78571144,9.73e-05,2]
[356148060,1741967432762,-172.10970957,9.73e-05,2]
[356148267,1741967438226,-1000.0,9.7e-05,2]
[356148268,1741967438236,-269.91029043,9.73e-05,2]
[356148269,1741967438246,-779.11,9.73e-05,2]
[356148270,1741967438256,-779.11,9.73e-05,2]
[356148271,1741967438266,-652.1,9.73e-05,2]
[356148272,1741967438276,-165.59,9.758e-05,2]
[356148273,1741967438285,-150.0,9.76e-05,2]
[356148274,1741967438295,-150.0,9.76e-05,2]
[356148275,1741967438304,-325.27871147,9.76e-05,2]
[356148276,1741967438316,-453.83128853,9.76e-05,2]
[356148277,1741967438326,-1394.66765214,9.799e-05,2]
[356148278,1741967438340,-510.0000005,9.799e-05,2]
[356148279,1741967438352,-66.48804736,9.799e-05,2]
[356148280,1741967438362,-1094.21980102,9.8e-05,2]
[356148281,1741967438372,-150.0,9.8e-05,2]
[356148282,1741967438381,-532.38180266,9.898e-05,2]
[356148283,1741967438390,-498.473,9.9e-05,2]
[356148284,1741967438400,-779.11,9.9e-05,2]
[356148285,1741967438409,-779.11,9.9e-05,2]
[356148286,1741967438419,-359.16734896,9.9e-05,2]
[356148287,1741967438431,-419.94265104,9.9e-05,2]
[356148288,1741967438440,-779.11,9.9e-05,2]
[356148289,1741967438450,-1433.59734896,9.9e-05,2]
[356148298,1741967438526,-838.55245104,9.9e-05,2]
[356148299,1741967438538,-1023.2571,9.9e-05,2]
[356148300,1741967438548,-1546.94520597,9.91e-05,2]
[356148393,1741967440223,-8723.00220046,9.91e-05,2]
[356148394,1741967440232,-160.39906084,9.973e-05,2]
[356148395,1741967440243,-1112.204,9.99e-05,2]
[356148396,1741967440253,-571.0,9.991e-05,2]
[356148397,1741967440262,-786.0,9.991e-05,2]
[356148398,1741967440273,-1427.0,9.991e-05,2]
[356148399,1741967440283,-1268.0,9.991e-05,2]
[356148400,1741967440293,-541.0,9.991e-05,2]
[356148401,1741967440303,-907.0,9.991e-05,2]
[356148402,1741967440313,-4075.0,9.991e-05,2]
[356148403,1741967440323,-272.692,9.991e-05,2]
[356148404,1741967440333,-151.0,9.991e-05,2]
[356148405,1741967440344,-1013.0,9.991e-05,2]
[356148406,1741967440354,-160.55,9.991e-05,2]
[356148407,1741967440364,-166.376,9.991e-05,2]
[356148408,1741967440374,-225.698,9.991e-05,2]
[356148409,1741967440384,-169.661,9.991e-05,2]
[356148410,1741967440395,-3934.0,9.991e-05,2]
[356148411,1741967440405,-1052.584,9.991e-05,2]
[356148412,1741967440416,-2884.73,9.999e-05,2]
[356148413,1741967440426,-185.53951977,9.999e-05,2]
[356148414,1741967440436,-29167.89032304,0.0001,2]
[356148415,1741967440446,-7658.01094636,0.0001,2]
[356148416,1741967440543,-2004.01084872,0.0001,2]
[356148419,1741967440921,-6911.09510315,0.0001,2]
[356148421,1741967440934,-1173.70891906,0.0001,2]
[356148422,1741967441101,-5821.07962553,0.0001,2]
[356148423,1741967441113,-417.28900415,0.0001,2]
[356148424,1741967441125,-775.87712474,0.0001,2]
[356148425,1741967441137,-462.65499999,0.0001,2]
[356148426,1741967441206,-1462.627066,0.0001,2]
[356148427,1741967441217,-2992.80000004,0.0001,2]
[356148428,1741967441229,-4090.91701531,0.0001,2]
[356148429,1741967441241,-4788.08043257,0.0001,2]
[356148430,1741967441253,-491.08843674,0.0001,2]
[356148481,1741967443252,-482.13596247,0.0001,2]
[356148485,1741967443264,-14911.94145908,0.0001,2]
[356148487,1741967443273,-27725.85493892,0.0001,2]
[356148488,1741967443371,-2193.62227818,0.0001,2]
[356148489,1741967443382,-561555.85025879,0.0001,2]
[356148490,1741967443394,-901.84078003,0.0001,2]
[356148491,1741967443405,-3062.5931,0.0001,2]
[356148492,1741967443417,-795.53474,0.0001,2]
[356148493,1741967443429,-565.98286566,0.0001,2]
[356148510,1741967445063,-263.95605343,0.0001,2]
[356148511,1741967445074,-300.0,0.0001,2]
[356148512,1741967445087,-673.14206966,0.0001,2]
[356148513,1741967445100,-1319.2,0.0001,2]
[356148514,1741967445111,-1243.33479485,0.0001,2]
[356148515,1741967445123,-12735.0044037,0.0001,2]
[356148516,1741967445134,-876.21301426,0.0001,2]
[356148517,1741967445145,-537.16417105,0.0001,2]
[356148518,1741967445156,-13832.82995373,0.0001,2]
[356148519,1741967445886,457.25,9.027e-05,2]
[356148523,1741967446497,-779.11,9.76e-05,2]
[356148524,1741967446507,-2922.81517562,0.0001,2]
[356148525,1741967446520,-21042.87694452,0.0001,2]
[356148526,1741967446532,-33368.43831084,0.0001,2]
[356148529,1741967446807,-28998.52946704,0.0001,2]
[356148530,1741967446819,-553.56974129,0.0001,2]
[356148532,1741967446943,-295.02003371,0.0001,2]
[356148534,1741967446955,-609.53823585,0.0001,2]
[356148536,1741967446967,-430.18684934,0.0001,2]
[356148539,1741967446996,-29238.75906275,0.0001,2]
[356148542,1741967447007,-663.02749647,0.0001,2]
[356148555,1741967447130,-107311.6410087,0.0001,2]
[356148578,1741967447339,-506.28464956,0.0001,2]
[356148855,1741967523915,500.0,9.027e-05,2]
[356148856,1741967599400,2000.0,0.00025191,120]
[356148857,1741967607259,396.74357024,0.00026136,120]
[356148858,1741967616948,1000.0,9.027e-05,2]
[356148863,1741967706601,200.0,9.027e-05,2]
[356148900,1741967762631,1554.75,9.027e-05,2]
[356148901,1741967789700,1496.65,8.219e-05,2]
[356148902,1741967822433,160.71,9.027e-05,2]
[356148904,1741967948429,171.3396883,9.027e-05,2]
[356148905,1741967948457,10000.0,9.027e-05,2]
[356148906,1741967948486,10000.0,9.027e-05,2]
[356148907,1741967948515,3728.6603117,9.027e-05,2]
[356148908,1741967957038,300.0,9.027e-05,2]
[356148913,1741968125637,5971.3396883,9e-05,2]
[356148914,1741968125659,10000.0,9e-05,2]
[356148915,1741968126049,10000.0,9e-05,2]
[356148916,1741968126087,10000.0,9e-05,2]
[356148917,1741968126109,3924.3354387,9e-05,2]
[356148919,1741968198835,678.69717757,0.00025301,120]
[356148920,1741968198863,320.533962,0.00025301,120]
[356148922,1741968225322,359.59,9.059e-05,2]
[356148923,1741968291155,614.23,9.027e-05,2]
[356148924,1741968304237,250.0,9e-05,2]
[356148927,1741968335803,218.52,8.987e-05,2]
[356148930,1741968565827,1848.97,8.963e-05,2]
[356148931,1741968584012,664.4,9.003e-05,2]
[356148932,1741968587969,250.0,8.963e-05,2]
[356148939,1741968632115,-150.0,9.731e-05,2]
[356148940,1741968632126,-550.0,9.731e-05,2]
[356148941,1741968632136,-150.0,9.744e-05,2]
[356148942,1741968632147,-150.0,9.748e-05,2]
[356148943,1741968632157,-550.0,9.753e-05,2]
[356148944,1741968632167,-300.0,9.799e-05,2]
[356148945,1741968632177,-250.699,9.8e-05,2]
[356148946,1741968632189,-524.92075,9.8e-05,2]
[356148947,1741968632201,-792.56775,9.8e-05,2]
[356148948,1741968632211,-3896.1736,9.8e-05,2]
[356148949,1741968632220,-150.0,9.803e-05,2]
[356148950,1741968632230,-171.54252802,9.803e-05,2]
[356148951,1741968632240,-150.0,9.824e-05,2]
[356148952,1741968632250,-150.0,9.875e-05,2]
[356148953,1741968632260,-1558.45255632,9.89e-05,2]
[356148954,1741968632272,-297.04785907,9.89e-05,2]
[356148955,1741968632313,-7328.2916,9.89e-05,2]
[356148956,1741968632397,-21380.31974389,9.89e-05,2]
[356148957,1741968632407,-194.652,9.894e-05,2]
[356148958,1741968632417,-541.0,9.894e-05,2]
[356148959,1741968632427,-213.888,9.894e-05,2]
[356148960,1741968632437,-150.0,9.899e-05,2]
[356148961,1741968632446,-769.744,9.9e-05,2]
[356148962,1741968632456,-870.646,9.9e-05,2]
[356148963,1741968632466,-151.0,9.9e-05,2]
[356148964,1741968632475,-812.5096,9.9e-05,2]
[356148965,1741968632485,-14354.863,9.9e-05,2]
[356148966,1741968632495,-4744.2072,9.9e-05,2]
[356148967,1741968632505,-13751.1957,9.9e-05,2]
[356148968,1741968632514,-265.8036,9.9e-05,2]
[356148969,1741968632525,-1000.0,9.9e-05,2]
[356148970,1741968632534,-517.979,9.9e-05,2]
[356148971,1741968632544,-5421.4685,9.9e-05,2]
[356148972,1741968632553,-47992.9558,9.9e-05,2]
[356148973,1741968632563,-4930.96,9.9e-05,2]
[356148974,1741968632572,-325.2305,9.9e-05,2]
[356148976,1741968632583,-8256.24601442,9.91e-05,2]
[356148978,1741968632592,-150.0,9.937e-05,2]
[356148980,1741968632601,-150.0,9.955e-05,2]
[356148982,1741968632611,-1426.791,9.963e-05,2]
[356148984,1741968632620,-187.957,9.97e-05,2]
[356148986,1741968632630,-155.412,9.991e-05,2]
[356148988,1741968632640,-571.0,9.991e-05,2]
[356148990,1741968632649,-5599.63792458,9.991e-05,2]
[356148992,1741968632659,-2764.53,9.999e-05,2]
[356148994,1741968632668,-90448.587415,0.0001,2]
[356148996,1741968632680,-759.58663573,0.0001,2]
[356148998,1741968632691,-2548.8,0.0001,2]
[356149029,1741968632975,-398.05286501,0.0001,2]
[356149031,1741968632987,-528411.00265632,0.0001,2]
[356149033,1741968632997,-2814.1598396,0.0001,2]
[356149035,1741968633006,-736476.18203329,0.0001,2]
[356149037,1741968633017,-273.99999998,0.0001,2]
[356149040,1741968633033,-9577.12165009,0.0001,2]
[356149044,1741968633070,-5012.5,0.0001,2]
[356149046,1741968633081,-4586.06303229,0.0001,2]
[356149048,1741968633092,-29757.92489263,0.0001,2]
[356149051,1741968633107,-1517.7796849,0.0001,2]
[356149062,1741968638056,-27221.65847195,0.0001,2]
[356149063,1741968638067,-14668.86474161,0.0001,2]
[356149064,1741968638079,-610.82773166,0.0001,2]
[356149065,1741968638105,-3379.26028201,0.0001,2]
[356149066,1741968638172,-416.94616708,0.0001,2]
[356149067,1741968638199,-12073.74617446,0.0001,2]
[356149068,1741968638211,-997.12359973,0.0001,2]
[356149069,1741968638273,-37394.94640081,0.0001,2]
[356149072,1741968638346,-472.4999987,0.0001,2]
[356149074,1741968638358,-4247.5,0.0001,2]
[356149076,1741968638371,-1713.56068351,0.0001,2]
[356149167,1741968640221,183.0,9.511e-05,2]
[356149168,1741968640262,-2656.120198,0.0001,2]
[356149169,1741968640355,-1018.78350001,0.0001,2]
[356149170,1741968640431,-1533.91026026,0.0001,2]
[356149171,1741968640443,-846.86325161,0.0001,2]
[356149172,1741968640455,-1922.92100008,0.0001,2]
[356149173,1741968640566,-2253.29855485,0.0001,2]
[356149174,1741968640578,-898.21211086,0.0001,2]
[356149183,1741968640869,-10662.03068909,0.0001,2]
[356149229,1741968643752,-507.21926423,0.0001,2]
[356149230,1741968643814,-1113.16750003,0.0001,2]
[356149240,1741968645212,-570.5632582,0.0001,2]
[356149241,1741968645223,-950.10509833,0.0001,2]
[356149250,1741968646963,-840.80000068,0.0001,2]
[356149251,1741968646988,-19653.72560168,0.0001,2]
[356149252,1741968647041,-93537.57025688,0.0001,2]
[356149253,1741968647362,500.0,8.963e-05,2]
[356149254,1741968749954,1186.9545613,8.963e-05,2]
[356149255,1741968749976,813.0454387,8.963e-05,2]
[356149257,1741968837001,-159.71,9.723e-05,2]
[356149258,1741968861170,-354.74751683,9.723e-05,2]
[356149260,1741968935978,1421.81,8.219e-05,2]
[356149261,1741968979611,427.85,9.5e-05,7]
[356149262,1741969060318,-154.47261532,9.661e-05,2]
[356149264,1741969520498,1012.77263419,9e-05,2]
[356149265,1741969532639,457.69802568,0.0002,120]
[356149269,1741969706075,250.0,9.088e-05,2]
[356149286,1741969808882,365.8,9.179e-05,2]
[356149291,1741969832665,-845.52738468,9.661e-05,2]
[356149293,1741969832688,-550.0,9.664e-05,2]
[356149295,1741969832698,-300.0,9.669e-05,2]
[356149297,1741969832707,-372.61637631,9.67e-05,2]
[356149299,1741969832719,-1698.67698,9.67e-05,2]
[356149301,1741969832731,-2717.91999083,9.67e-05,2]
[356149304,1741969832748,-847.51833839,9.67e-05,2]
[356149307,1741969832766,-745.31215746,9.67e-05,2]
[356149309,1741969832777,-2838.4395873,9.67e-05,2]
[356149311,1741969832787,-160.71,9.673e-05,2]
[356149313,1741969832796,-550.0,9.679e-05,2]
[356149315,1741969832805,-262.91248317,9.723e-05,2]
[356149317,1741969832814,-3126.43906327,9.88e-05,2]
[356149319,1741969832826,-1748.74770662,9.88e-05,2]
[356149321,1741969832836,-185.03432395,9.927e-05,2]
[356149323,1741969832845,-12317.25843467,9.97e-05,2]
[356149325,1741969832855,-150.0,9.979e-05,2]
[356149327,1741969832864,-129885.76403705,9.98e-05,2]
[356149329,1741969832874,-2395.87019064,9.987e-05,2]
[356149331,1741969832885,-199.597,9.994e-05,2]
[356149333,1741969832894,-1233.348,9.994e-05,2]
[356149335,1741969832904,-1271.0,9.994e-05,2]
[356149337,1741969832913,-151.0,9.994e-05,2]
[356149339,1741969832923,-3853.12724935,9.999e-05,2]
[356149341,1741969832932,-2649.34,9.999e-05,2]
[356149343,1741969832942,-500.0,9.999e-05,2]
[356149345,1741969832953,-227908.60790995,0.0001,2]
[356149348,1741969832972,-2553.33000917,0.0001,2]
[356149350,1741969832983,-10304.05629123,0.0001,2]
[356149352,1741969832994,-250.54459124,0.0001,2]
[356149355,1741969833005,-4239.0,0.0001,2]
[356149393,1741969838459,-367.8232,9.89e-05,2]
[356149394,1741969838469,-57.3318,0.0001,2]
[356149554,1741969840740,-251.02478898,9.914e-05,2]
[356149555,1741969840752,-319.97521102,9.914e-05,2]
[356149556,1741969840762,-1828.29491448,0.0001,2]
[356149557,1741969840803,-1025.24639998,0.0001,2]
[356149558,1741969840815,-10699.95612152,0.0001,2]
[356149559,1741969840825,-7094.41043461,0.0001,2]
[356149577,1741969843430,-4000.0,0.0001,2]
[356149578,1741969844555,-4759.47706004,0.0001,2]
[356149609,1741969846618,-4060.75325396,0.0001,2]
[356149610,1741969846643,-266.59702798,0.0001,2]
[356149620,1741969917780,166.66,9.454e-05,2]
[356149621,1741969954349,388.68,9.087e-05,2]
[356149622,1741969984113,1350.71,8.219e-05,2]
[356149624,1741970103091,581.00000024,0.000115,10]
[356149625,1741970138352,250.0,9e-05,2]
[356149627,1741970685217,-150.0,9.681e-05,2]
[356149628,1741970725425,1000.0,9.022e-05,2]
[356149637,1741970805015,1852.42,9.016e-05,2]
[356149638,1741970891461,250.0,9.016e-05,2]
[356149640,1741970941752,878.10192711,9.016e-05,2]
[356149641,1741970941777,10000.0,9.016e-05,2]
[356149642,1741970941799,4160.99807289,9.016e-05,2]
[356149643,1741970962458,567.04,9.016e-05,2]
[356149646,1741971031575,-60.01,9.681e-05,2]
[356149647,1741971031585,-1250.76,9.681e-05,2]
[356149648,1741971031594,-89.23,9.688e-05,2]
[356149649,1741971031606,-460.77,9.688e-05,2]
[356149650,1741971031616,-150.0,9.694e-05,2]
[356149651,1741971031626,-210.01,9.707e-05,2]
[356149652,1741971031635,-210.01,9.732e-05,2]
[356149653,1741971031645,-150.0,9.732e-05,2]
[356149654,1741971031655,-210.01,9.758e-05,2]
[356149655,1741971031664,-210.01,9.783e-05,2]
[356149656,1741971031674,-210.01,9.809e-05,2]
[356149657,1741971031686,-210.01,9.834e-05,2]
[356149658,1741971031698,-150.0,9.836e-05,2]
[356149659,1741971031708,-210.01,9.86e-05,2]
[356149660,1741971031717,-210.01,9.885e-05,2]
[356149661,1741971031727,-210.01,9.911e-05,2]
[356149662,1741971031737,-210.01,9.936e-05,2]
[356149663,1741971031746,-210.01,9.962e-05,2]
[356149664,1741971031755,-110723.42119952,9.978e-05,2]
[356149665,1741971031767,-210.01,9.987e-05,2]
[356149666,1741971031777,-151.0,9.996e-05,2]
[356149667,1741971031787,-150.0,9.996e-05,2]
[356149668,1741971031796,-500.0,9.999e-05,2]
[356149669,1741971031806,-2538.95,9.999e-05,2]
[356149670,1741971031815,-150.0,9.999e-05,2]
[356149671,1741971031824,-8086.35319916,0.0001,2]
[356149672,1741971031843,-1671.83388341,0.0001,2]
[356149673,1741971031884,-2510.60206527,0.0001,2]
[356149675,1741971031895,-4676.72178158,0.0001,2]
[356149684,1741971031981,-4016.99999997,0.0001,2]
[356149686,1741971031994,-6643.1222569,0.0001,2]
[356149890,1741971037409,-2024.99738266,0.0001,2]
[356149891,1741971037420,-2869.6376563,0.0001,2]
[356149892,1741971037580,-122.3889751,0.0001,2]
[356150079,1741971039656,-339.18046603,0.0001,2]
[356150090,1741971039761,-1657.0626379,0.0001,2]
[356150092,1741971039773,-79029.24280844,0.0001,2]
[356150097,1741971039823,-386.55999963,0.0001,2]
[356150103,1741971039867,-332.26984012,0.0001,2]
[356150105,1741971039878,-722.1,0.0001,2]
[356150110,1741971039922,-424.35371071,0.0001,2]
[356150182,1741971042708,-200.0,9.598e-05,2]
[356150183,1741971042718,-42138.02064213,0.0001,2]
[356150184,1741971042758,-14358.07293169,0.0001,2]
[356150186,1741971043952,-1106.60310953,0.0001,2]
[356150187,1741971043962,-551.96067441,0.0001,2]
[356150190,1741971045489,-1076721.19589714,0.0001,2]
[356150191,1741971045647,-287696.17402248,0.0001,2]
[356150197,1741971105392,1283.17,8.219e-05,2]
[356150198,1741971166931,1500.0,9.57e-05,2]
[356150199,1741971284499,159.71,7.289e-05,2]
[356150200,1741971372172,200.0,9.531e-05,2]
[356150202,1741971525453,434.37,9.484e-05,2]
[356150203,1741971527969,729.58,9.484e-05,2]
[356150204,1741971752468,965.13192711,9.077e-05,2]
[356150205,1741971752491,34.86807289,9.077e-05,2]
[356150206,1741971784473,-1968.62,9.587e-05,2]
[356150207,1741971784499,-322.4278034,9.597e-05,2]
[356150208,1741971784525,-150.0,9.634e-05,2]
[356150209,1741971784552,-854.67,9.681e-05,2]
[356150210,1741971784578,-1035.66,9.681e-05,2]
[356150211,1741971784604,-5000.0,9.9e-05,2]
[356150212,1741971784640,-3250.414,9.9e-05,2]
[356150213,1741971784670,-313.8384,9.9e-05,2]
[356150218,1741971964000,154.41,9.492e-05,2]
[356150219,1741971970762,250.0,9e-05,2]
[356150220,1741971988329,250.0,9.681e-05,2]
[356150221,1741971991300,215.42,9.43e-05,2]
[356150222,1741971991515,215.42,9.455e-05,2]
[356150223,1741971991738,215.42,9.479e-05,2]
[356150224,1741971992004,215.42,9.504e-05,2]
[356150225,1741971992215,215.42,9.529e-05,2]
[356150226,1741971992432,215.42,9.554e-05,2]
[356150227,1741971992654,215.42,9.579e-05,2]
[356150228,1741971993100,215.42,9.604e-05,2]
[356150229,1741971993534,215.42,9.628e-05,2]
[356150230,1741971993787,215.42,9.653e-05,2]
[356150231,1741971993998,215.42,9.678e-05,2]
[356150232,1741971994462,215.42,9.703e-05,2]
[356150233,1741971995346,215.42,9.728e-05,2]
[356150234,1741971995390,215.42,9.753e-05,2]
[356150235,1741971995425,215.42,9.777e-05,2]
[356150236,1741971995581,215.42,9.802e-05,2]
[356150237,1741971995789,215.42,9.827e-05,2]
[356150238,1741971996000,215.42,9.852e-05,2]
[356150239,1741971996212,215.42,9.877e-05,2]
[356150240,1741972012582,159.46,9.698e-05,2]
[356150242,1741972066680,292.64,9.435e-05,2]
[356150243,1741972077881,805.8797966,9.681e-05,2]
[356150244,1741972164507,749.24,9.095e-05,2]
[356150254,1741972231768,-255.1902034,9.681e-05,2]
[356150255,1741972231782,-150.0,9.791e-05,2]
[356150256,1741972231798,-215.42,9.901e-05,2]
[356150257,1741972231811,-151.0,9.988e-05,2]
[356150258,1741972231826,-442.88,9.99e-05,2]
[356150259,1741972231842,-519.86334569,9.99e-05,2]
[356150260,1741972231855,-300.0,9.994e-05,2]
[356150261,1741972231867,-2215.64645091,9.995e-05,2]
[356150262,1741972231927,-774.34181465,9.995e-05,2]
[356150263,1741972232032,-4860.65215151,9.995e-05,2]
[356150322,1741972232802,-2113.28286315,9.995e-05,2]
[356150325,1741972232817,-854.02,9.995e-05,2]
[356150372,1741972237608,-3277.39981208,9.995e-05,2]
[356150373,1741972237618,-1974.877,9.999e-05,2]
[356150374,1741972237627,-173.738,9.999e-05,2]
[356150375,1741972237637,-2454.0,9.999e-05,2]
[356150376,1741972237646,-500.0,9.999e-05,2]
[356150377,1741972237656,-150.0,9.999e-05,2]
[356150378,1741972237665,-953.78387796,0.0001,2]
[356150379,1741972237674,-6696.38993435,0.0001,2]
[356150380,1741972237692,-1141.60691107,0.0001,2]
[356150381,1741972237767,-1453.65315458,0.0001,2]
[356150382,1741972237776,-150.99,0.0001,2]
[356150383,1741972237785,-299.99,0.0001,2]
[356150384,1741972237794,-3984.78957922,0.0001,2]
[356150385,1741972237803,-162.70196799,0.0001,2]
[356150386,1741972237813,-5947.87529821,0.0001,2]
[356150387,1741972237825,-834.56470179,0.0001,2]
[356150388,1741972237834,-7671.87475507,0.0001,2]
[356150393,1741972239815,-2328.11524493,0.0001,2]
[356150394,1741972239826,-999.99,0.0001,2]
[356150395,1741972239836,-13679.09475506,0.0001,2]
[356150410,1741972240331,-902.39180674,0.0001,2]
[356150413,1741972240348,-2285.68321379,0.0001,2]
[356150415,1741972240359,-1400.23858137,0.0001,2]
[356150417,1741972240371,-733.14001655,0.0001,2]
[356150481,1741972243271,-427.33,9.594e-05,2]
[356150483,1741972243281,-82.17571749,0.0001,2]
[356150485,1741972243293,-1543.88054635,0.0001,2]
[356150490,1741972243631,-5144.9517,0.0001,2]
[356150491,1741972243646,-5926.0,0.0001,2]
[356150495,1741972245729,-250.69425337,0.0001,2]
[356150496,1741972245835,-326.208,0.0001,2]
[356150497,1741972245847,-17475.68498501,0.0001,2]
[356150498,1741972245859,-24091.45816934,0.0001,2]
[356150499,1741972245941,-12426.56168666,0.0001,2]
[356150500,1741972246048,-2778.44779171,0.0001,2]
[356150503,1741972259161,1219.01,8.219e-05,2]
[356150504,1741972442956,700.0,9.4e-05,3]
[356150505,1741972445064,1400.0,9.5e-05,3]
[356150506,1741972657389,163.65,9.069e-05,2]
[356150507,1741972680426,250.0,9.061e-05,2]